[Event "2nd Turkish League 2017"]
[Site "Konya"]
[Date "2017.07.23"]
[Round "9"]
[White "Demir, Utku Deniz"]
[Black "Turkmen, Huseyin Nafizhan"]
[Result "1/2-1/2"]
[ECO "B08"]
[WhiteElo "1680"]
[BlackElo "1817"]
[Annotator "NA"]
[PlyCount "99"]
[EventType "team-tourn"]
[EventCountry "TUR"]
[SourceTitle "playchess.com"]
[Source "ChessBase"]
[SourceQuality "1"]
[TimeControl "5400+30"]

1. e4 {[%emt 0:00:30]} d6 {[%emt 0:01:00]} 2. d4 {[%emt 0:00:30]} Nf6 {[%emt 0:00:30]} 3. Nc3 {[%emt 0:00:00]} g6 {[%emt 0:00:30]} 4. Nf3 {[%emt 0:00:00]} Bg7 {[%emt 0:00:00]} 5. Bg5 {[%emt 0:00:00]} O-O {[%emt 0:00:00] LiveBook: 24 Games} 6. Qe2 $11 {[%emt 0:00:00]} h6 {[%emt 0:06:30]} 7. Be3 {[%emt 0:02:30]} c6 {[%emt 0:02:30]} 8. Qd2 {[%emt 0:07:30]} Kh7 {[%emt 0:03:30]} 9. h3 {[%emt 0:05:30]} b5 {[%emt 0:08:30]} 10. Bd3 {[%emt 0:01:30]} Nbd7 {[%emt 0:08:30]} 11. O-O-O {[%emt 0:05:30]} b4 {[%emt 0:15:30]} 12. Ne2 {[%emt 0:00:30]} Qa5 {[%emt 0:00:30]} 13. Kb1 {[%emt 0:01:30]} Nb6 {[%emt 0:05:30]} 14. c3 {[%emt 0:13:30]} Be6 {[%emt 0:06:30]} 15. b3 {[%emt 0:04:30]} bxc3 {[%emt 0:06:30]} 16. Qxc3 {[%emt 0:02:30]} Qxc3 {[%emt 0:00:30]} 17. Nxc3 {[%emt 0:00:30]} Rfb8 {[%emt 0:06:30]} 18. Kc2 {[%emt 0:01:30]} a5 {[%emt 0:02:30]} 19. a4 {[%emt 0:03:30]} Ra7 {[%emt 0:02:30]} 20. Nd2 {[%emt 0:02:30]} Rc7 {[%emt 0:02:30]} 21. f4 {[%emt 0:03:30]} d5 {[%emt 0:06:10]} 22. e5 {[%emt 0:10:30]} Nfd7 {[%emt 0:00:23]} 23. g4 {[%emt 0:00:30]} c5 {[%emt 0:02:01]} 24. f5 {[%emt 0:05:30]} cxd4 {[%emt 0:00:22]} 25. Bxd4 {[%emt 0:00:30]} Bxe5 {[%emt 0:00:15]} 26. Nf3 {[%emt 0:00:30]} Bxd4 {[%emt 0:10:45]} 27. Nxd4 {[%emt 0:00:30]} Rbc8 {[%emt 0:00:30]} 28. Ndb5 {[%emt 0:00:30]} d4 {[%emt 0:00:32]} 29. fxe6 {[%emt 0:00:00]} Rxc3+ {[%emt 0:00:13]} 30. Nxc3 {[%emt 0:00:00]} Rxc3+ {[%emt 0:00:00]} 31. Kb2 {[%emt 0:01:30]} fxe6 {[%emt 0:00:06]} 32. h4 {[%emt 0:01:30]} Nc5 {[%emt 0:01:55]} 33. Bc2 {[%emt 0:01:30]} e5 {[%emt 0:01:44]} 34. h5 {[%emt 0:01:30]} Nd5 {[%emt 0:00:37]} 35. Bxg6+ {[%emt 0:00:30]} Kg7 {[%emt 0:00:25]} 36. Rhf1 {[%emt 0:02:30]} Rxb3+ {[%emt 0:00:38]} 37. Ka1 {[%emt 0:02:30]} Nxa4 {[%emt 0:00:50]} 38. Rf7+ {[%emt 0:01:30]} Kg8 {[%emt 0:00:02]} 39. Rdf1 {[%emt 0:00:30]} Ra3+ {[%emt 0:01:39]} 40. Kb1 {[%emt 0:00:30]} Nac3+ {[%emt 0:00:08]} 41. Kb2 {[%emt 0:00:30]} Ra2+ {[%emt 0:00:01]} 42. Kb3 {[%emt 0:00:30]} a4+ {[%emt 0:00:30]} 43. Kc4 {[%emt 0:00:30]} Ne3+ {[%emt 0:00:00]} 44. Kd3 {[%emt 0:00:00]} Nxf1 {[%emt 0:00:54]} 45. Rxf1 {[%emt 0:00:00]} Rg2 {[%emt 0:00:00]} 46. Bf5 {[%emt 0:03:03]} a3 {[%emt 0:02:01]} 47. Be6+ {[%emt 0:00:07]} Kh7 {[%emt 0:00:29]} 48. Rf7+ {[%emt 0:00:30]} Kh8 {[%emt 0:00:00]} 49. Rf8+ {[%emt 0:00:14]} Kg7 {[%emt 0:00:15]} 50. Rf7+ {[%emt 0:00:00]} 1/2-1/2

[Event "2nd Turkish League 2017"]
[Site "Konya"]
[Date "2017.07.23"]
[Round "9"]
[White "Kahya, Gizem"]
[Black "Simsek, Meltem"]
[Result "1/2-1/2"]
[ECO "D14"]
[WhiteElo "1634"]
[BlackElo "1752"]
[Annotator "NA"]
[PlyCount "65"]
[EventType "team-tourn"]
[EventCountry "TUR"]
[SourceTitle "playchess.com"]
[Source "ChessBase"]
[SourceQuality "1"]
[TimeControl "5400+30"]

1. d4 {[%emt 0:00:30]} d5 {[%emt 0:01:00]} 2. c4 {[%emt 0:00:30]} c6 {[%emt 0:00:00]} 3. cxd5 {[%emt 0:00:00]} cxd5 {[%emt 0:00:00]} 4. Nc3 {[%emt 0:01:00]} Nc6 {[%emt 0:00:30]} 5. Nf3 {[%emt 0:00:00]} Nf6 {[%emt 0:00:30]} 6. Bf4 {[%emt 0:00:00]} Bf5 {[%emt 0:03:30]} 7. e3 {[%emt 0:03:30]} e6 {[%emt 0:01:30]} 8. Bd3 {[%emt 0:01:30]} Bxd3 {[%emt 0:00:30]} 9. Qxd3 {[%emt 0:00:30]} Bd6 {[%emt 0:00:30]} 10. Bxd6 {[%emt 0:00:00]} Qxd6 {[%emt 0:00:00]} 11. O-O {[%emt 0:01:00]} O-O {[%emt 0:00:00]} 12. Rfc1 {[%emt 0:00:30]} Rfc8 {[%emt 0:12:30]} 13. h3 {[%emt 0:04:30]} h6 {[%emt 0:02:30]} 14. Ne2 {[%emt 0:01:30]} Ne7 {[%emt 0:05:30]} 15. Rxc8+ {[%emt 0:00:30]} Rxc8 {[%emt 0:00:30]} 16. Rc1 {[%emt 0:05:30]} Rxc1+ {[%emt 0:03:30]} 17. Nxc1 {[%emt 0:02:30]} Nd7 {[%emt 0:04:30]} 18. Ne2 {[%emt 0:01:30]} Qc7 {[%emt 0:00:30]} 19. Qc3 {[%emt 0:00:00]} Qxc3 {[%emt 0:00:30]} 20. Nxc3 {[%emt 0:00:00]} a6 {[%emt 0:00:00]} 21. Kf1 {[%emt 0:00:00]} Kf8 {[%emt 0:00:00]} 22. Ke2 {[%emt 0:00:00]} Ke8 {[%emt 0:00:00]} 23. Kd3 {[%emt 0:00:30]} Nc6 {[%emt 0:00:00]} 24. a3 {[%emt 0:00:00]} Ke7 {[%emt 0:00:00]} 25. Nd2 {[%emt 0:00:00]} Kd6 {[%emt 0:00:00]} 26. Nb3 {[%emt 0:00:30]} f6 {[%emt 0:00:30]} 27. f3 {[%emt 0:00:30]} g6 {[%emt 0:00:30]} 28. Nd2 {[%emt 0:00:00]} Ne7 {[%emt 0:00:00]} 29. g3 {[%emt 0:00:00]} h5 {[%emt 0:00:00]} 30. b3 {[%emt 0:00:00]} Nc6 {[%emt 0:00:00]} 31. Ndb1 {[%emt 0:01:00]} b6 {[%emt 0:00:00]} 32. Nd2 {[%emt 0:00:00]} Ne7 {[%emt 0:00:30]} 33. Ndb1 {[%emt 0:00:00]} 1/2-1/2

[Event "2nd Turkish League 2017"]
[Site "Konya"]
[Date "2017.07.23"]
[Round "9"]
[White "Ozcan, Ilker"]
[Black "Ozdemir, Ali"]
[Result "1/2-1/2"]
[ECO "D79"]
[WhiteElo "1565"]
[BlackElo "1762"]
[Annotator "NA"]
[PlyCount "60"]
[EventType "team-tourn"]
[EventCountry "TUR"]
[SourceTitle "playchess.com"]
[Source "ChessBase"]
[SourceQuality "1"]
[TimeControl "5400+30"]

1. d4 {[%emt 0:00:30]} d5 {[%emt 0:01:00]} 2. Nf3 {[%emt 0:00:00]} Nf6 {[%emt 0:00:00]} 3. g3 {[%emt 0:00:00]} g6 {[%emt 0:02:00]} 4. Bg2 {[%emt 0:00:00]} Bg7 {[%emt 0:01:30]} 5. O-O {[%emt 0:04:00]} O-O {[%emt 0:06:30]} 6. c4 {[%emt 0:01:30]} c6 {[%emt 0:01:30]} 7. cxd5 {[%emt 0:00:30]} cxd5 {[%emt 0:01:30]} 8. Nc3 {[%emt 0:00:00]} Nc6 {[%emt 0:00:30]} 9. Qb3 {[%emt 0:00:00]} Na5 {[%emt 0:02:30]} 10. Qd1 {[%emt 0:00:30]} Nc6 {[%emt 0:00:00]} 11. Bf4 {[%emt 0:00:30]} Bf5 {[%emt 0:01:00]} 12. Rc1 {[%emt 0:01:30]} Rc8 {[%emt 0:00:30]} 13. Re1 {[%emt 0:00:00]} Re8 {[%emt 0:00:30]} 14. h3 {[%emt 0:00:00]} Ne4 {[%emt 0:05:30]} 15. Ne5 {[%emt 0:01:30]} Nxe5 {[%emt 0:04:30]} 16. Nxe4 {[%emt 0:00:30]} Bxe4 {[%emt 0:01:30]} 17. dxe5 {[%emt 0:00:30]} Bxg2 {[%emt 0:01:30]} 18. Kxg2 {[%emt 0:00:30]} Rxc1 {[%emt 0:00:30]} 19. Qxc1 {[%emt 0:00:30]} Qc8 {[%emt 0:00:30]} 20. g4 {[%emt 0:00:30]} Bf8 {[%emt 0:00:30]} 21. Qxc8 {[%emt 0:00:30]} Rxc8 {[%emt 0:00:30]} 22. Rc1 {[%emt 0:00:30]} Rxc1 {[%emt 0:00:30]} 23. Bxc1 {[%emt 0:00:00]} Bg7 {[%emt 0:01:30]} 24. f4 {[%emt 0:00:00]} e6 {[%emt 0:00:30]} 25. Kf3 {[%emt 0:00:00]} Kf8 {[%emt 0:00:30]} 26. e4 {[%emt 0:00:00]} dxe4+ {[%emt 0:00:30]} 27. Kxe4 {[%emt 0:00:30]} Ke7 {[%emt 0:00:30]} 28. Be3 {[%emt 0:00:00]} b6 {[%emt 0:00:00]} 29. f5 {[%emt 0:00:00]} gxf5+ {[%emt 0:01:00]} 30. gxf5 {[%emt 0:00:00]} f6 {[%emt 0:04:30]} 1/2-1/2

[Event "2nd Turkish League 2017"]
[Site "Konya"]
[Date "2017.07.23"]
[Round "9"]
[White "Ozsoy, Damla"]
[Black "Baloglu, Dila"]
[Result "1/2-1/2"]
[ECO "B34"]
[WhiteElo "1490"]
[BlackElo "1379"]
[Annotator "NA"]
[PlyCount "61"]
[EventType "team-tourn"]
[EventCountry "TUR"]
[SourceTitle "playchess.com"]
[Source "ChessBase"]
[SourceQuality "1"]
[TimeControl "5400+30"]

1. e4 {[%emt 0:00:30]} c5 {[%emt 0:01:00]} 2. Nf3 {[%emt 0:00:30]} g6 {[%emt 0:00:30]} 3. d4 {[%emt 0:00:30]} cxd4 {[%emt 0:00:30]} 4. Nxd4 {[%emt 0:00:00]} Bg7 {[%emt 0:00:00]} 5. Be3 {[%emt 0:01:00]} Nf6 {[%emt 0:00:00]} 6. Nd2 {[%emt 0:00:30]} Nc6 {[%emt 0:00:00]} 7. c3 {[%emt 0:00:30]} O-O {[%emt 0:00:00]} 8. Be2 {[%emt 0:00:30]} d6 {[%emt 0:00:00]} 9. O-O {[%emt 0:00:30]} Bd7 {[%emt 0:00:00]} 10. h3 {[%emt 0:01:30]} Nxd4 {[%emt 0:00:00]} 11. cxd4 {[%emt 0:00:30]} Rc8 {[%emt 0:00:00]} 12. Qb3 {[%emt 0:00:30]} b6 {[%emt 0:00:30]} 13. Rac1 {[%emt 0:00:30]} Bc6 {[%emt 0:00:30]} 14. d5 {[%emt 0:02:30]} Bb7 {[%emt 0:00:30]} 15. Bd3 {[%emt 0:00:00]} Nd7 {[%emt 0:00:30]} 16. Qa3 {[%emt 0:02:00]} a5 {[%emt 0:01:30]} 17. Rxc8 {[%emt 0:03:30]} Bxc8 {[%emt 0:01:30]} 18. Nb3 {[%emt 0:01:30]} Nc5 {[%emt 0:03:30]} 19. Nxc5 {[%emt 0:00:30]} dxc5 {[%emt 0:00:30]} 20. b3 {[%emt 0:00:00]} e6 {[%emt 0:00:30]} 21. Bc4 {[%emt 0:01:00]} exd5 {[%emt 0:00:30]} 22. Bxd5 {[%emt 0:00:30]} Qc7 {[%emt 0:00:00]} 23. Qc1 {[%emt 0:00:30]} Bb7 {[%emt 0:00:00]} 24. Rd1 {[%emt 0:02:30]} Re8 {[%emt 0:02:30]} 25. Bf4 {[%emt 0:01:30]} Qc8 {[%emt 0:00:30]} 26. Qc4 {[%emt 0:01:30]} Qd7 {[%emt 0:00:30]} 27. Rc1 {[%emt 0:02:30]} Be5 {[%emt 0:00:30]} 28. Bxe5 {[%emt 0:00:30]} Rxe5 {[%emt 0:00:30]} 29. Bxb7 {[%emt 0:00:30]} Qxb7 {[%emt 0:00:30]} 30. f3 {[%emt 0:00:30]} Qd7 {[%emt 0:00:30]} 31. Qc2 {[%emt 0:00:30]} 1/2-1/2

[Event "2nd Turkish League 2017"]
[Site "Konya"]
[Date "2017.07.23"]
[Round "9"]
[White "Sariisik, Cagdas"]
[Black "Celik, Berkay"]
[Result "0-1"]
[ECO "B06"]
[WhiteElo "1468"]
[BlackElo "1963"]
[Annotator "NA"]
[PlyCount "124"]
[EventType "team-tourn"]
[EventCountry "TUR"]
[SourceTitle "playchess.com"]
[Source "ChessBase"]
[SourceQuality "1"]
[TimeControl "5400+30"]

1. e4 {[%emt 0:00:30]} g6 {[%emt 0:01:00]} 2. Nf3 {[%emt 0:00:30]} Bg7 {[%emt 0:00:00]} 3. d4 {[%emt 0:00:30]} d6 {[%emt 0:00:00]} 4. Bc4 {[%emt 0:00:30]} Nf6 {[%emt 0:00:00]} 5. Qe2 {[%emt 0:03:30]} O-O {[%emt 0:02:00]} 6. O-O {[%emt 0:06:30]} Nc6 {[%emt 0:02:30]} 7. c3 {[%emt 0:00:00]} e5 {[%emt 0:00:00]} 8. Na3 {[%emt 0:01:00]} Qe7 {[%emt 0:00:00]} 9. Re1 {[%emt 0:01:30]} Bg4 {[%emt 0:00:30]} 10. Nc2 {[%emt 0:00:30]} Rfe8 {[%emt 0:00:30]} 11. d5 {[%emt 0:04:30]} Nd8 {[%emt 0:00:30]} 12. h3 {[%emt 0:00:00]} Bd7 {[%emt 0:00:30]} 13. a4 {[%emt 0:02:00]} h6 {[%emt 0:00:00]} 14. a5 {[%emt 0:11:30]} a6 {[%emt 0:00:00]} 15. Nd2 {[%emt 0:08:30]} Nh7 {[%emt 0:00:30]} 16. b4 {[%emt 0:05:30]} f5 {[%emt 0:00:00]} 17. f3 {[%emt 0:01:30]} f4 {[%emt 0:00:00]} 18. Bb3 {[%emt 0:04:30]} g5 {[%emt 0:00:00]} 19. c4 {[%emt 0:05:30]} Nf7 {[%emt 0:00:00]} 20. Ba3 {[%emt 0:03:30]} h5 {[%emt 0:00:00]} 21. c5 {[%emt 0:00:30]} Nf6 {[%emt 0:00:00]} 22. Bc4 {[%emt 0:04:30]} g4 {[%emt 0:00:00]} 23. hxg4 {[%emt 0:05:30]} hxg4 {[%emt 0:00:00]} 24. Rec1 {[%emt 0:00:30]} Nh5 {[%emt 0:01:30]} 25. Ne1 {[%emt 0:07:30]} g3 {[%emt 0:00:30]} 26. Kf1 {[%emt 0:01:30]} Qh4 {[%emt 0:00:00]} 27. Qd3 {[%emt 0:01:30]} Qh2 {[%emt 0:01:00]} 28. Ke2 {[%emt 0:01:57]} Bh3 {[%emt 0:00:00]} 29. Nf1 {[%emt 0:00:54]} Qg1 {[%emt 0:00:00]} 30. gxh3 {[%emt 0:01:49]} g2 {[%emt 0:00:30]} 31. Nxg2 {[%emt 0:05:50]} Qxg2+ {[%emt 0:00:30]} 32. Kd1 {[%emt 0:01:13]} Ng5 {[%emt 0:00:30]} 33. Nd2 {[%emt 0:00:24]} Nxh3 {[%emt 0:00:00]} 34. Qf1 {[%emt 0:01:05]} Qh2 {[%emt 0:00:00]} 35. Kc2 {[%emt 0:03:20]} Ng3 {[%emt 0:00:30]} 36. Qe1 {[%emt 0:01:43]} Ng5 {[%emt 0:00:30]} 37. Qg1 {[%emt 0:00:53]} Nxf3 {[%emt 0:00:00]} 38. Qxh2 {[%emt 0:01:02]} Nxh2 {[%emt 0:00:00]} 39. Bb2 {[%emt 0:01:12]} Ng4 {[%emt 0:00:00]} 40. Bd3 {[%emt 0:01:10]} Kf7 {[%emt 0:00:00]} 41. c6 {[%emt 0:00:41]} bxc6 {[%emt 0:00:30]} 42. dxc6 {[%emt 0:00:30]} Rh8 {[%emt 0:00:30]} 43. Nf3 {[%emt 0:00:21]} Bf6 {[%emt 0:00:30]} 44. b5 {[%emt 0:00:40]} axb5 {[%emt 0:00:00]} 45. Bxb5 {[%emt 0:00:35]} Nxe4 {[%emt 0:00:00]} 46. a6 {[%emt 0:00:29]} Ne3+ {[%emt 0:00:00]} 47. Kb3 {[%emt 0:01:09]} Nc5+ {[%emt 0:00:00]} 48. Kb4 {[%emt 0:00:03]} Nd5+ {[%emt 0:01:30]} 49. Kc4 {[%emt 0:02:28]} Nb6+ {[%emt 0:00:30]} 50. Kb4 {[%emt 0:00:35]} Rh3 {[%emt 0:00:00]} 51. Nxe5+ {[%emt 0:00:28]} Bxe5 {[%emt 0:00:00]} 52. Bxe5 {[%emt 0:00:16]} Rb3+ {[%emt 0:00:30]} 53. Ka5 {[%emt 0:00:14]} Nxa6 {[%emt 0:00:30]} 54. Bxa6 {[%emt 0:00:43]} dxe5 {[%emt 0:00:30]} 55. Rc5 {[%emt 0:00:46]} Ke6 {[%emt 0:00:30]} 56. Rb5 {[%emt 0:00:16]} Nc4+ {[%emt 0:00:30]} 57. Ka4 {[%emt 0:00:19]} Rb2 {[%emt 0:00:30]} 58. Rxb2 {[%emt 0:01:06]} Rxa6+ {[%emt 0:00:00]} 59. Kb3 {[%emt 0:00:35]} Rxa1 {[%emt 0:00:00]} 60. Kxc4 {[%emt 0:00:00]} Rc1+ {[%emt 0:00:30]} 61. Kb5 {[%emt 0:00:56]} f3 {[%emt 0:00:00]} 62. Ka6 {[%emt 0:00:06]} Rxc6+ {[%emt 0:00:00]} 0-1

[Event "2nd Turkish League 2017"]
[Site "Konya"]
[Date "2017.07.23"]
[Round "9"]
[White "Yaman, Sila"]
[Black "Ilkbahar, Nimet Seray"]
[Result "0-1"]
[ECO "A46"]
[WhiteElo "1342"]
[BlackElo "1618"]
[Annotator "NA"]
[PlyCount "78"]
[EventType "team-tourn"]
[EventCountry "TUR"]
[SourceTitle "playchess.com"]
[Source "ChessBase"]
[SourceQuality "1"]
[TimeControl "5400+30"]

1. d4 {[%emt 0:00:30]} d5 {[%emt 0:01:00]} 2. e3 {[%emt 0:00:30]} Nf6 {[%emt 0:00:30]} 3. Bd3 {[%emt 0:00:00]} c5 {[%emt 0:00:30]} 4. c3 {[%emt 0:00:00]} cxd4 {[%emt 0:00:30]} 5. exd4 {[%emt 0:00:30]} Nc6 {[%emt 0:00:00]} 6. f4 {[%emt 0:00:30]} g6 {[%emt 0:03:00]} 7. Nf3 {[%emt 0:00:30]} Bg7 {[%emt 0:03:30]} 8. O-O {[%emt 0:00:30]} O-O {[%emt 0:01:30]} 9. Nbd2 {[%emt 0:00:30]} Qb6 {[%emt 0:05:30]} 10. Ne5 {[%emt 0:02:30]} Nxe5 {[%emt 0:07:30]} 11. fxe5 {[%emt 0:00:30]} Ng4 {[%emt 0:05:30]} 12. Nf3 {[%emt 0:04:30]} Nxe5 {[%emt 0:03:30]} 13. Nxe5 {[%emt 0:02:30]} Bxe5 {[%emt 0:00:30]} 14. Qe2 {[%emt 0:00:30]} Bf6 {[%emt 0:04:30]} 15. Bh6 {[%emt 0:03:30]} Rd8 {[%emt 0:05:30]} 16. Rae1 {[%emt 0:04:30]} Be6 {[%emt 0:07:30]} 17. h4 {[%emt 0:02:30]} Qc7 {[%emt 0:15:30]} 18. Bf4 {[%emt 0:03:30]} Qd7 {[%emt 0:01:30]} 19. g3 {[%emt 0:06:30]} Bh3 {[%emt 0:02:30]} 20. Rf2 {[%emt 0:01:30]} Qg4 {[%emt 0:01:30]} 21. Qxg4 {[%emt 0:04:30]} Bxg4 {[%emt 0:00:00]} 22. Ref1 {[%emt 0:00:30]} Bh3 {[%emt 0:01:00]} 23. Re1 {[%emt 0:00:00]} a6 {[%emt 0:01:30]} 24. Kh2 {[%emt 0:00:00]} Be6 {[%emt 0:01:30]} 25. Be5 {[%emt 0:03:30]} Bg7 {[%emt 0:02:30]} 26. h5 {[%emt 0:02:30]} Bxe5 {[%emt 0:02:30]} 27. Rxe5 {[%emt 0:00:30]} Kg7 {[%emt 0:01:30]} 28. hxg6 {[%emt 0:00:30]} hxg6 {[%emt 0:00:00]} 29. Rf1 {[%emt 0:01:30]} Rh8+ {[%emt 0:00:00]} 30. Kg1 {[%emt 0:00:30]} Rh3 {[%emt 0:01:30]} 31. Kg2 {[%emt 0:00:30]} Rah8 {[%emt 0:00:30]} 32. Rf2 {[%emt 0:04:30]} Rh2+ {[%emt 0:00:30]} 33. Kf1 {[%emt 0:00:30]} Rxf2+ {[%emt 0:01:30]} 34. Kxf2 {[%emt 0:01:30]} Rh2+ {[%emt 0:00:00]} 35. Kf3 {[%emt 0:00:30]} Rxb2 {[%emt 0:00:00]} 36. Re2 {[%emt 0:00:30]} Rxe2 {[%emt 0:01:30]} 37. Kxe2 {[%emt 0:00:30]} Bf5 {[%emt 0:03:27]} 38. Bxf5 {[%emt 0:00:30]} gxf5 {[%emt 0:00:01]} 39. Kf3 {[%emt 0:01:30]} Kg6 {[%emt 0:00:21]} 0-1

[Event "2nd Turkish League 2017"]
[Site "Konya"]
[Date "2017.07.23"]
[Round "9"]
[White "Meylani, Irem Serdil"]
[Black "Catal, Uktenur"]
[Result "1/2-1/2"]
[ECO "B28"]
[WhiteElo "1288"]
[BlackElo "1613"]
[Annotator "NA"]
[PlyCount "27"]
[EventType "team-tourn"]
[EventCountry "TUR"]
[SourceTitle "playchess.com"]
[Source "ChessBase"]
[SourceQuality "1"]
[TimeControl "5400+30"]

1. e4 {[%emt 0:00:30]} c5 {[%emt 0:01:00]} 2. Nf3 {[%emt 0:00:30]} a6 {[%emt 0:00:00]} 3. d4 {[%emt 0:00:00]} cxd4 {[%emt 0:00:00]} 4. Nxd4 {[%emt 0:00:00]} Nf6 {[%emt 0:00:30]} 5. Nc3 {[%emt 0:00:30]} e5 {[%emt 0:00:00]} 6. Nb3 {[%emt 0:01:30]} Bb4 {[%emt 0:00:00]} 7. Bd3 {[%emt 0:02:30]} d5 {[%emt 0:00:30]} 8. exd5 {[%emt 0:03:30]} Nxd5 {[%emt 0:00:00]} 9. Bd2 {[%emt 0:01:30]} Nxc3 {[%emt 0:00:00]} 10. bxc3 {[%emt 0:01:30]} Bd6 {[%emt 0:00:30]} 11. c4 {[%emt 0:01:30]} Qc7 {[%emt 0:01:30]} 12. Qf3 {[%emt 0:05:30]} O-O {[%emt 0:03:30]} 13. Ba5 {[%emt 0:04:30]} Qe7 {[%emt 0:00:30]} 14. O-O {[%emt 0:01:30]} 1/2-1/2